fUSD/lending_fUSD_20260202
["ID","MTS","AMOUNT","RATE_DAILY","PERIOD"]
[404358050,1770075044067,-1370.0,0.00010548,2]
[404358051,1770075044081,-491.0,0.00010548,2]
[404358052,1770075044092,-2028.0,0.00010548,2]
[404358053,1770075044102,-1009.18,0.00010548,2]
[404358054,1770075044113,-200.0,0.00010548,2]
[404358055,1770075044124,-500.0,0.00010548,2]
[404358056,1770075044134,-200.0,0.00010548,2]
[404358057,1770075044145,-484.0,0.00010596,2]
[404358058,1770075044157,-633.0,0.00010596,2]
[404358059,1770075044168,-315.90463653,0.00010596,2]
[404358060,1770075044180,-1072.0,0.00010596,2]
[404358061,1770075044192,-832.0,0.00010596,2]
[404358062,1770075044204,-500.0,0.00010596,2]
[404358063,1770075044215,-570.0,0.00010603,2]
[404358064,1770075044225,-691.0,0.00010603,2]
[404358065,1770075044236,-1370.0,0.00010603,2]
[404358066,1770075044246,-491.0,0.00010603,2]
[404358067,1770075044257,-2028.0,0.00010603,2]
[404358068,1770075044267,-500.0,0.0001062,2]
[404358069,1770075044278,-543.53042842,0.00010622,2]
[404358070,1770075044289,-1000.0,0.00010622,2]
[404358071,1770075044300,-1000.0,0.00010622,2]
[404358072,1770075044312,-1000.0,0.00010622,2]
[404358073,1770075044324,-1000.0,0.00010622,2]
[404358074,1770075044338,-1000.0,0.00010622,2]
[404358075,1770075044349,-1000.0,0.00010622,2]
[404358076,1770075044359,-1000.0,0.00010622,2]
[404358077,1770075044370,-1000.0,0.00010622,2]
[404358078,1770075044380,-1000.0,0.00010622,2]
[404358079,1770075044392,-259.40505883,0.00010622,2]
[404358080,1770075044403,-1000.0,0.00010622,2]
[404358081,1770075044413,-1000.0,0.00010622,2]
[404358082,1770075044424,-490.75391952,0.00010622,2]
[404358083,1770075044435,-500.0,0.00010622,2]
[404358084,1770075044446,-1000.0,0.00010622,2]
[404358085,1770075044457,-501.31844292,0.00010622,2]
[404358086,1770075044468,-245.04092473,0.00010622,2]
[404358087,1770075044479,-1000.0,0.00010622,2]
[404358088,1770075044492,-510.87393165,0.00010622,2]
[404358089,1770075044503,-1000.0,0.00010622,2]
[404358090,1770075044513,-1000.0,0.00010622,2]
[404358091,1770075044525,-1000.0,0.00010622,2]
[404358092,1770075044535,-460.07091613,0.00010622,2]
[404358093,1770075044546,-656.95111861,0.00010622,2]
[404358094,1770075044556,-1000.0,0.00010622,2]
[404358095,1770075044568,-484.0,0.00010651,2]
[404358096,1770075044580,-633.0,0.00010651,2]
[404358098,1770075044591,-1072.0,0.00010651,2]
[404358100,1770075044602,-832.0,0.00010651,2]
[404358102,1770075044613,-186.26916348,0.00010651,2]
[404358103,1770075044624,-570.0,0.00010658,2]
[404358105,1770075044635,-691.0,0.00010658,2]
[404358107,1770075044646,-1370.0,0.00010658,2]
[404358109,1770075044664,-491.0,0.00010658,2]
[404358112,1770075044677,-2028.0,0.00010658,2]
[404358114,1770075044691,-150.0,0.00010699,2]
[404358115,1770075044703,-500.0,0.00010699,2]
[404358116,1770075044714,-268.67078659,0.000107,2]
[404358117,1770075044727,-484.0,0.00010705,2]
[404358118,1770075044738,-633.0,0.00010705,2]
[404358119,1770075044752,-1072.0,0.00010705,2]
[404358120,1770075044763,-832.0,0.00010705,2]
[404358122,1770075044776,-570.0,0.00010712,2]
[404358125,1770075044794,-691.0,0.00010712,2]
[404358128,1770075044815,-1370.0,0.00010712,2]
[404358129,1770075044829,-491.0,0.00010712,2]
[404358130,1770075044841,-2028.0,0.00010712,2]
[404358131,1770075044851,-150.0,0.00010754,2]
[404358132,1770075044864,-500.0,0.00010754,2]
[404358133,1770075044880,-484.0,0.0001076,2]
[404358134,1770075044897,-633.0,0.0001076,2]
[404358135,1770075044908,-1072.0,0.0001076,2]
[404358136,1770075044919,-832.0,0.0001076,2]
[404358137,1770075044930,-570.0,0.00010767,2]
[404358138,1770075044941,-691.0,0.00010767,2]
[404358139,1770075044951,-1370.0,0.00010767,2]
[404358140,1770075044962,-491.0,0.00010767,2]
[404358141,1770075044974,-2028.0,0.00010767,2]
[404358142,1770075044985,-1029.34213251,0.000108,2]
[404358143,1770075044995,-150.0,0.00010809,2]
[404358144,1770075045007,-500.0,0.00010809,2]
[404358145,1770075045021,-484.0,0.00010815,2]
[404358146,1770075045039,-633.0,0.00010815,2]
[404358147,1770075045054,-1072.0,0.00010815,2]
[404358148,1770075045071,-832.0,0.00010815,2]
[404358149,1770075045107,-1000.0,0.00010819,2]
[404358150,1770075045123,-570.0,0.00010822,2]
[404358151,1770075045140,-691.0,0.00010822,2]
[404358152,1770075045152,-1370.0,0.00010822,2]
[404358153,1770075045164,-491.0,0.00010822,2]
[404358154,1770075045178,-2028.0,0.00010822,2]
[404358155,1770075045190,-1009.18,0.00010822,2]
[404358156,1770075045201,-282.25840253,0.00010863,2]
[404358157,1770075045213,-500.0,0.00010863,2]
[404358158,1770075045225,-484.0,0.0001087,2]
[404358159,1770075045240,-633.0,0.0001087,2]
[404358160,1770075045251,-1072.0,0.0001087,2]
[404358161,1770075045267,-832.0,0.0001087,2]
[404358162,1770075045279,-570.0,0.00010877,2]
[404358163,1770075045290,-691.0,0.00010877,2]
[404358164,1770075045303,-1370.0,0.00010877,2]
[404358165,1770075045314,-491.0,0.00010877,2]
[404358166,1770075045328,-2028.0,0.00010877,2]
[404358167,1770075045339,-500.0,0.00010894,2]
[404358168,1770075045351,-5982.44707831,0.000109,2]
[404358169,1770075045361,-5982.44707826,0.000109,2]
[404358170,1770075045373,-500.0,0.00010918,2]
[404358171,1770075045385,-5982.44707826,0.00010923,2]
[404358172,1770075045398,-484.0,0.00010924,2]
[404358173,1770075045410,-633.0,0.00010924,2]
[404358174,1770075045421,-1072.0,0.00010924,2]
[404358175,1770075045432,-832.0,0.00010924,2]
[404358176,1770075045442,-570.0,0.00010931,2]
[404358177,1770075045452,-691.0,0.00010931,2]
[404358178,1770075045464,-1370.0,0.00010931,2]
[404358179,1770075045475,-491.0,0.00010931,2]
[404358180,1770075045486,-2028.0,0.00010931,2]
[404358181,1770075045498,-200.0,0.00010958,2]
[404358182,1770075045508,-500.0,0.00010958,2]
[404358183,1770075045521,-500.0,0.00010959,2]
[404358184,1770075045534,-150.0,0.00010959,2]
[404358185,1770075045547,-166.66,0.00010959,2]
[404358186,1770075045558,-4817.54,0.00010959,2]
[404358187,1770075045569,-184.11,0.00010959,2]
[404358188,1770075045579,-500.0,0.00010973,2]
[404358189,1770075045590,-500.0,0.00010973,2]
[404358190,1770075045601,-500.91194722,0.00010973,2]
[404358191,1770075045611,-168.13382401,0.00010973,2]
[404358192,1770075045621,-164.14571343,0.00010973,2]
[404358193,1770075045633,-500.0,0.00010973,2]
[404358194,1770075045644,-164.70227396,0.00010973,2]
[404358195,1770075045654,-500.0,0.00010973,2]
[404358196,1770075045716,-541.62569807,0.00010973,2]
[404358197,1770075045727,-506.45210639,0.00010973,2]
[404358198,1770075045740,-506.0,0.00010979,2]
[404358199,1770075045751,-502.43207959,0.00010979,2]
[404358200,1770075045761,-1082.0,0.00010979,2]
[404358201,1770075045771,-834.75843928,0.00010979,2]
[404358202,1770075045782,-577.71455312,0.00010986,2]
[404358203,1770075045797,-693.72276123,0.00010986,2]
[404358204,1770075045810,-1371.02236342,0.00010986,2]
[404358205,1770075045821,-499.0,0.00010986,2]
[404358206,1770075045832,-2050.74266754,0.00010986,2]
[404358207,1770075045844,-1000.0,0.00010999,2]
[404358208,1770075045855,-263961.8498,0.00010999,2]
[404358209,1770075045869,-33288.2505,0.00010999,2]
[404358210,1770075045880,-308.0088,0.00010999,2]
[404358211,1770075045891,-200.0,0.00011068,2]
[404358212,1770075045902,-166.66,0.00011068,2]
[404358213,1770075045914,-500.0,0.00011073,2]
[404358214,1770075045926,-500.0,0.00011073,2]
[404358215,1770075045937,-500.0,0.00011073,2]
[404358216,1770075045947,-1536.04360649,0.00011089,2]
[404358217,1770075045957,-187.78006525,0.00011089,2]
[404358218,1770075045970,-151.0,0.00011089,2]
[404358219,1770075045983,-225.18697532,0.00011089,2]
[404358220,1770075046009,-1009.18,0.00011096,2]
[404358221,1770075046021,-200.0,0.00011096,2]
[404358222,1770075046032,-500.0,0.00011096,2]
[404358223,1770075046042,-200.0,0.00011096,2]
[404358224,1770075046055,-73346.61775255,0.00011099,2]
[404358225,1770075046066,-73346.61775249,0.00011099,2]
[404358226,1770075046077,-73346.61775249,0.00011099,2]
[404358227,1770075046090,-73346.61775249,0.00011099,2]
[404358228,1770075046101,-73346.61775249,0.00011099,2]
[404358229,1770075046112,-73346.61775249,0.00011099,2]
[404358230,1770075046122,-61509.22629006,0.00011099,2]
[404358231,1770075046134,-61509.22628997,0.00011099,2]
[404358232,1770075046145,-61509.22628997,0.00011099,2]
[404358233,1770075046158,-61509.22628997,0.00011144,2]
[404358234,1770075046169,-500.0,0.00011168,2]
[404358235,1770075046180,-1500.0,0.0001117,2]
[404358236,1770075046190,-1500.0,0.0001117,2]
[404358237,1770075046201,-1500.0,0.0001117,2]
[404358238,1770075046211,-1500.0,0.0001117,2]
[404358239,1770075046222,-1500.0,0.0001117,2]
[404358240,1770075046232,-1500.0,0.0001117,2]
[404358241,1770075046242,-1500.0,0.0001117,2]
[404358242,1770075046254,-1500.0,0.0001117,2]
[404358243,1770075046264,-652.81544497,0.0001117,2]
[404358244,1770075046274,-1500.0,0.0001117,2]
[404358245,1770075046284,-1500.0,0.0001117,2]
[404358246,1770075046294,-1500.0,0.0001117,2]
[404358247,1770075046305,-1500.0,0.0001117,2]
[404358248,1770075046316,-911.8365552,0.0001117,2]
[404358249,1770075046327,-1500.0,0.0001117,2]
[404358250,1770075046337,-1564.89867821,0.0001117,2]
[404358251,1770075046349,-1346.7110441,0.0001117,2]
[404358252,1770075046360,-200.0,0.00011178,2]
[404358253,1770075046372,-166.66,0.00011178,2]
[404358254,1770075046382,-73346.61775249,0.00011284,2]
[404358255,1770075046392,-166.66,0.00011288,2]
[404358256,1770075046404,-200.0,0.0001129,2]
[404358257,1770075046416,-150.00878362,0.00011357,2]
[404358258,1770075046426,-334.5472959,0.00011362,2]
[404358259,1770075046439,-1009.18,0.0001137,2]
[404358260,1770075046449,-166.66,0.00011397,2]
[404358261,1770075046462,-250.0,0.00011402,2]
[404358262,1770075046474,-200.0,0.00011403,2]
[404358263,1770075046485,-500.0,0.00011442,2]
[404358264,1770075046495,-3292.0,0.00011484,2]
[404358265,1770075046506,-736.0,0.00011484,2]
[404358266,1770075046518,-292.0,0.00011484,2]
[404358267,1770075046528,-361.67777304,0.00011489,2]
[404358268,1770075046539,-166.66,0.00011507,2]
[404358269,1770075046551,-576.30320125,0.00011521,2]
[404358270,1770075046562,-1000.0,0.00011521,2]
[404358271,1770075046574,-1000.0,0.00011521,2]
[404358272,1770075046584,-1617.53493796,0.00011566,2]
[404358273,1770075046594,-160.29771235,0.00011566,2]
[404358274,1770075046604,-341.63207322,0.00011574,2]
[404358275,1770075046614,-1005.56383771,0.00011621,2]
[404358276,1770075046625,-1000.0,0.00011621,2]
[404358277,1770075046635,-1000.0,0.00011621,2]
[404358278,1770075046645,-1592.87721993,0.00011637,2]
[404358279,1770075046655,-194.72792766,0.00011637,2]
[404358280,1770075046666,-230.16041742,0.00011637,2]
[404358281,1770075046677,-233.51889341,0.00011637,2]
[404358282,1770075046686,-1009.18,0.00011644,2]
[404358283,1770075046697,-200.0,0.00011644,2]
[404358284,1770075046707,-500.0,0.00011644,2]
[404358285,1770075046716,-200.0,0.00011644,2]
[404358286,1770075046726,-1600.0,0.00011648,2]
[404358287,1770075046736,-532.21894192,0.00011716,2]
[404358288,1770075046747,-2000.0,0.00011718,2]
[404358289,1770075046757,-1584.52493025,0.00011718,2]
[404358290,1770075046767,-2000.0,0.00011718,2]
[404358291,1770075046777,-2000.0,0.00011718,2]
[404358292,1770075046788,-2000.0,0.00011718,2]
[404358293,1770075046798,-2000.0,0.00011718,2]
[404358294,1770075046810,-345.40864898,0.00011718,2]
[404358295,1770075046820,-2000.0,0.00011718,2]
[404358296,1770075046830,-2000.0,0.00011718,2]
[404358297,1770075046841,-2000.0,0.00011718,2]
[404358299,1770075046852,-550.7159852,0.00011718,2]
[404358301,1770075046862,-2000.0,0.00011718,2]
[404358303,1770075046871,-2008.17552064,0.00011718,2]
[404358305,1770075046881,-73346.61775249,0.00011726,2]
[404358306,1770075046891,-1000.0,0.000119,2]
[404358307,1770075046901,-1009.18,0.00011918,2]
[404358308,1770075046912,-61509.22628997,0.00011982,2]
[404358309,1770075046922,-1500.0,0.00012068,2]
[404358310,1770075046932,-1506.79391477,0.00012068,2]
[404358311,1770075046942,-5982.44707826,0.0001212,2]
[404358312,1770075046953,-1500.0,0.00012168,2]
[404358313,1770075046963,-1500.0,0.00012168,2]
[404358314,1770075046973,-73346.61775249,0.00012169,2]
[404358315,1770075046984,-1651.81367706,0.00012185,2]
[404358316,1770075046998,-201.93286099,0.00012185,2]
[404358318,1770075047010,-242.15909246,0.00012185,2]
[404358319,1770075047022,-1009.18,0.00012192,2]
[404358321,1770075047033,-200.0,0.00012192,2]
[404358322,1770075047044,-500.0,0.00012192,2]
[404358323,1770075047055,-200.0,0.00012192,2]
[404358324,1770075047066,-2456.63226471,0.00012266,2]
[404358325,1770075047076,-1879.40909817,0.00012266,2]
[404358326,1770075047086,-2500.0,0.00012266,2]
[404358327,1770075047097,-2500.0,0.00012266,2]
[404358328,1770075047107,-2473.78998774,0.00012266,2]
[404358329,1770075047117,-2500.0,0.00012266,2]
[404358330,1770075047128,-2500.0,0.00012266,2]
[404358331,1770075047139,-2500.0,0.00012266,2]
[404358332,1770075047150,-2500.0,0.00012266,2]
[404358333,1770075047161,-1009.18,0.00012466,2]
[404358334,1770075047172,-73346.61775249,0.00012611,2]
[404358335,1770075047183,-2000.0,0.00012616,2]
[404358336,1770075047194,-1252.0,0.00012631,2]
[404358337,1770075047207,-4609.0,0.00012632,2]
[404358338,1770075047218,-193705.37119555,0.0001269,2]
[404358339,1770075047229,-150.00878362,0.00012714,2]
[404358340,1770075047240,-2000.0,0.00012716,2]
[404358341,1770075047250,-576.084771,0.00012716,2]
[404358342,1770075047260,-346.92554585,0.00012731,2]
[404358343,1770075047270,-747.8093786,0.00012732,2]
[404358344,1770075047280,-599.60298507,0.00012732,2]
[404358345,1770075047290,-1712.93078312,0.00012733,2]
[404358346,1770075047302,-209.40437684,0.00012733,2]
[404358347,1770075047313,-251.11897888,0.00012733,2]
[404358348,1770075047323,-1009.18,0.0001274,2]
[404358349,1770075047333,-200.0,0.0001274,2]
[404358350,1770075047343,-500.0,0.0001274,2]
[404358351,1770075047356,-200.0,0.0001274,2]
[404358352,1770075047367,-1600.0,0.00012813,2]
[404358353,1770075047378,-3000.0,0.00012814,2]
[404358354,1770075047389,-2042.2584521,0.00012814,2]
[404358355,1770075047403,-1025.91450425,0.00012814,2]
[404358356,1770075047416,-2500.0,0.00012814,2]
[404358357,1770075047428,-1309.50611672,0.00012814,2]
[404358358,1770075047439,-3000.0,0.00012814,2]
[404358359,1770075047451,-61509.22628997,0.0001282,2]
[404358360,1770075047464,-1000.0,0.00012982,2]
[404358361,1770075047475,-4433.94000455,0.00013,2]
[404358362,1770075047485,-1009.18,0.00013014,2]
[404358363,1770075047495,-367.86,0.00013024,2]
[404358364,1770075047505,-5353.89966494,0.0001305,2]
[404358365,1770075047517,-180.85627716,0.00013106,2]
[404358366,1770075047527,-477.28257686,0.00013106,2]
[404358367,1770075047537,-1671.19037679,0.00013164,2]
[404358368,1770075047546,-1518.57190756,0.00013264,2]
[404358369,1770075047557,-1776.30922209,0.00013281,2]
[404358370,1770075047567,-217.15233878,0.00013281,2]
[404358371,1770075047581,-260.4103811,0.00013281,2]
[404358372,1770075047593,-1009.18,0.00013288,2]
[404358373,1770075047603,-200.0,0.00013288,2]
[404358374,1770075047615,-500.0,0.00013288,2]
[404358375,1770075047625,-200.0,0.00013288,2]
[404358376,1770075047635,-1254.66078218,0.00013306,2]
[404358377,1770075047646,-5982.44707826,0.00013317,2]
[404358378,1770075047656,-3500.0,0.00013362,2]
[404358379,1770075047666,-1500.0,0.00013362,2]
[404358380,1770075047676,-183.76045452,0.000135,2]
[404358381,1770075047687,-515.85083038,0.00013541,2]
[404358382,1770075047697,-20407.19883095,0.00013541,2]
[404358383,1770075047707,-1009.18,0.00013562,2]
[404358384,1770075047717,-61509.22628997,0.00013658,2]
[404358385,1770075047727,-1324.60867668,0.00013688,2]
[404358386,1770075047737,-500.0,0.00013698,2]
[404358387,1770075047747,-272.39317181,0.00013698,2]
[404358388,1770075047758,-500.0,0.00013698,2]
[404358389,1770075047768,-500.0,0.00013698,2]
[404358390,1770075047778,-500.0,0.00013698,2]
[404358391,1770075047789,-500.0,0.00013698,2]
[404358392,1770075047800,-500.0,0.00013698,2]
[404358393,1770075047811,-500.0,0.00013698,2]
[404358394,1770075047822,-500.0,0.00013698,2]
[404358395,1770075047833,-453.81105922,0.00013698,2]
[404358396,1770075047842,-811.57,0.00013698,2]
[404358397,1770075047852,-811.57,0.00013698,2]
[404358398,1770075047862,-811.57,0.00013698,2]
[404358399,1770075047872,-811.57,0.00013698,2]
[404358400,1770075047881,-811.57,0.00013698,2]
[404358401,1770075047891,-811.57,0.00013698,2]
[404358402,1770075047901,-811.57,0.00013698,2]
[404358403,1770075047911,-811.57,0.00013698,2]
[404358404,1770075047921,-811.57,0.00013698,2]
[404358405,1770075047931,-811.57,0.00013698,2]
[404358406,1770075047940,-811.57,0.00013698,2]
[404358407,1770075047950,-811.57,0.00013698,2]
[404358408,1770075047960,-811.57,0.00013698,2]
[404358409,1770075047970,-811.57,0.00013698,2]
[404358410,1770075047979,-500.0,0.00013698,2]
[404358411,1770075047989,-500.0,0.00013698,2]
[404358412,1770075048001,-500.0,0.00013698,2]
[404358413,1770075048012,-500.0,0.00013698,2]
[404358414,1770075048021,-500.0,0.00013698,2]
[404358415,1770075048031,-500.0,0.00013698,2]
[404358416,1770075048041,-500.0,0.00013698,2]
[404358417,1770075048050,-500.0,0.00013698,2]
[404358418,1770075048061,-440.6625364,0.00013698,2]
[404358419,1770075048071,-500.0,0.00013698,2]
[404358420,1770075048080,-500.0,0.00013698,2]
[404358421,1770075048091,-500.0,0.00013698,2]
[404358422,1770075048100,-500.0,0.00013698,2]
[404358423,1770075048109,-500.0,0.00013698,2]
[404358424,1770075048120,-500.0,0.00013698,2]
[404358425,1770075048129,-500.0,0.00013698,2]
[404358426,1770075048139,-500.0,0.00013698,2]
[404358427,1770075048149,-500.0,0.00013698,2]
[404358428,1770075048159,-500.0,0.00013698,2]
[404358429,1770075048170,-500.0,0.00013698,2]
[404358430,1770075048180,-500.0,0.00013698,2]
[404358431,1770075048191,-500.0,0.00013698,2]
[404358432,1770075048201,-500.0,0.00013698,2]
[404358433,1770075048211,-500.0,0.00013698,2]
[404358434,1770075048221,-1540.59,0.00013698,2]
[404358435,1770075048230,-500.0,0.00013698,2]
[404358436,1770075048240,-1540.59,0.00013698,2]
[404358437,1770075048250,-500.0,0.00013698,2]
[404358438,1770075048259,-1540.59,0.00013698,2]
[404358439,1770075048270,-500.0,0.00013698,2]
[404358440,1770075048279,-1540.59,0.00013698,2]
[404358441,1770075048289,-500.0,0.00013698,2]
[404358442,1770075048300,-1540.59,0.00013698,2]
[404358443,1770075048310,-500.0,0.00013698,2]
[404358444,1770075048320,-500.0,0.00013698,2]
[404358445,1770075048331,-1540.59,0.00013698,2]
[404358446,1770075048341,-500.0,0.00013698,2]
[404358447,1770075048351,-1540.59,0.00013698,2]
[404358448,1770075048360,-500.0,0.00013698,2]
[404358449,1770075048371,-1540.59,0.00013698,2]
[404358450,1770075048381,-1540.59,0.00013698,2]
[404358451,1770075048391,-500.0,0.00013698,2]
[404358452,1770075048401,-1540.59,0.00013698,2]
[404358453,1770075048410,-500.0,0.00013698,2]
[404358454,1770075048420,-1540.59,0.00013698,2]
[404358455,1770075048431,-500.0,0.00013698,2]
[404358456,1770075048441,-1540.59,0.00013698,2]
[404358457,1770075048450,-500.0,0.00013698,2]
[404358458,1770075048459,-1540.59,0.00013698,2]
[404358459,1770075048469,-500.0,0.00013698,2]
[404358460,1770075048478,-1540.59,0.00013698,2]
[404358461,1770075048488,-500.0,0.00013698,2]
[404358462,1770075048497,-1540.59,0.00013698,2]
[404358463,1770075048507,-500.0,0.00013698,2]
[404358464,1770075048516,-1540.59,0.00013698,2]
[404358465,1770075048525,-639.93,0.00013698,2]
[404358466,1770075048535,-639.93,0.00013698,2]
[404358467,1770075048544,-639.93,0.00013698,2]
[404358468,1770075048554,-639.93,0.00013698,2]
[404358469,1770075048564,-639.93,0.00013698,2]
[404358470,1770075048574,-639.93,0.00013698,2]
[404358471,1770075048584,-639.93,0.00013698,2]
[404358472,1770075048594,-639.93,0.00013698,2]
[404358473,1770075048604,-639.93,0.00013698,2]
[404358474,1770075048614,-639.93,0.00013698,2]
[404358475,1770075048623,-639.93,0.00013698,2]
[404358476,1770075048633,-639.93,0.00013698,2]
[404358477,1770075048643,-639.93,0.00013698,2]
[404358478,1770075048653,-639.93,0.00013698,2]
[404358479,1770075048663,-639.93,0.00013698,2]
[404358480,1770075048673,-639.93,0.00013698,2]
[404358481,1770075048683,-554.70150285,0.00013698,2]
[404358482,1770075048692,-646.39442601,0.00013698,2]
[404358483,1770075048702,-596.97,0.00013698,2]
[404358484,1770075048711,-596.97,0.00013698,2]
[404358485,1770075048721,-596.97,0.00013698,2]
[404358486,1770075048731,-596.97,0.00013698,2]
[404358487,1770075048740,-596.97,0.00013698,2]
[404358488,1770075048750,-596.97,0.00013698,2]
[404358489,1770075048760,-596.97,0.00013698,2]
[404358491,1770075048769,-596.97,0.00013698,2]
[404358492,1770075048779,-500.0,0.00013698,2]
[404358493,1770075048788,-596.97,0.00013698,2]
[404358494,1770075048798,-500.0,0.00013698,2]
[404358495,1770075048808,-500.0,0.00013698,2]
[404358496,1770075048819,-596.97,0.00013698,2]
[404358497,1770075048828,-500.0,0.00013698,2]
[404358498,1770075048838,-596.97,0.00013698,2]
[404358499,1770075048847,-500.0,0.00013698,2]
[404358500,1770075048856,-596.97,0.00013698,2]
[404358501,1770075048866,-500.0,0.00013698,2]
[404358502,1770075048876,-596.97,0.00013698,2]
[404358503,1770075048886,-500.0,0.00013698,2]
[404358504,1770075048895,-596.97,0.00013698,2]
[404358505,1770075048905,-339.58910113,0.00013698,2]
[404358506,1770075048915,-596.97,0.00013698,2]
[404358507,1770075048924,-596.97,0.00013698,2]
[404358508,1770075048934,-500.0,0.00013698,2]
[404358509,1770075048943,-1675.29,0.00013698,2]
[404358510,1770075048953,-500.0,0.00013698,2]
[404358511,1770075048963,-1675.29,0.00013698,2]
[404358512,1770075048972,-500.0,0.00013698,2]
[404358513,1770075048981,-1675.29,0.00013698,2]
[404358514,1770075048991,-500.0,0.00013698,2]
[404358515,1770075049000,-1675.29,0.00013698,2]
[404358516,1770075049012,-500.0,0.00013698,2]
[404358517,1770075049022,-500.0,0.00013698,2]
[404358518,1770075049031,-1675.29,0.00013698,2]
[404358519,1770075049040,-500.0,0.00013698,2]
[404358520,1770075049050,-1675.29,0.00013698,2]
[404358521,1770075049059,-500.0,0.00013698,2]
[404358522,1770075049069,-1675.29,0.00013698,2]
[404358523,1770075049078,-500.0,0.00013698,2]
[404358524,1770075049089,-1675.29,0.00013698,2]
[404358525,1770075049099,-500.0,0.00013698,2]
[404358526,1770075049108,-1675.29,0.00013698,2]
[404358527,1770075049117,-500.0,0.00013698,2]
[404358528,1770075049127,-1675.29,0.00013698,2]
[404358529,1770075049137,-500.0,0.00013698,2]
[404358530,1770075049146,-1675.29,0.00013698,2]
[404358531,1770075049155,-500.0,0.00013698,2]
[404358532,1770075049164,-1675.29,0.00013698,2]
[404358533,1770075049174,-500.0,0.00013698,2]
[404358534,1770075049183,-1675.29,0.00013698,2]
[404358535,1770075049192,-1675.29,0.00013698,2]
[404358536,1770075049202,-1675.29,0.00013698,2]
[404358537,1770075049212,-1675.29,0.00013698,2]
[404358538,1770075049221,-1675.29,0.00013698,2]
[404358539,1770075049230,-500.0,0.00013698,2]
[404358540,1770075049240,-516.48312948,0.00013698,2]
[404358541,1770075049249,-500.0,0.00013698,2]
[404358542,1770075049259,-500.0,0.00013698,2]
[404358543,1770075049268,-500.0,0.00013698,2]
[404358544,1770075049278,-500.0,0.00013698,2]
[404358545,1770075049291,-500.0,0.00013698,2]
[404358546,1770075049304,-500.0,0.00013698,2]
[404358547,1770075049314,-500.0,0.00013698,2]
[404358548,1770075049324,-345.2209737,0.00013698,2]
[404358549,1770075049334,-500.0,0.00013698,2]
[404358550,1770075049344,-500.0,0.00013698,2]
[404358551,1770075049353,-500.0,0.00013698,2]
[404358552,1770075049363,-500.0,0.00013698,2]
[404358553,1770075049372,-500.0,0.00013698,2]
[404358554,1770075049382,-500.0,0.00013698,2]
[404358555,1770075049391,-500.0,0.00013698,2]
[404358556,1770075049400,-500.0,0.00013698,2]
[404358557,1770075049410,-500.0,0.00013698,2]
[404358558,1770075049419,-500.0,0.00013698,2]
[404358559,1770075049428,-500.0,0.00013698,2]
[404358560,1770075049438,-500.0,0.00013698,2]
[404358561,1770075049447,-500.0,0.00013698,2]
[404358562,1770075049457,-500.0,0.00013698,2]
[404358563,1770075049466,-500.0,0.00013698,2]
[404358564,1770075049475,-500.0,0.00013698,2]
[404358565,1770075049485,-500.0,0.00013698,2]
[404358566,1770075049494,-500.0,0.00013698,2]
[404358567,1770075049503,-500.0,0.00013698,2]
[404358568,1770075049513,-500.0,0.00013698,2]
[404358569,1770075049522,-500.0,0.00013698,2]
[404358570,1770075049532,-614.04732503,0.00013698,2]